[Event "Saint Louis Invitational-A 2019"]
[Site "Saint Louis"]
[Date "2019.11.22"]
[Round "2.1"]
[White "Matsenko, Sergei"]
[Black "Zierk, Steven"]
[Result "1/2-1/2"]
[ECO "A05"]
[WhiteElo "2533"]
[BlackElo "2512"]
[Annotator "ChessBase"]
[PlyCount "107"]
[EventDate "2019.11.21"]
[EventType "tourn"]
[EventCountry "USA"]
[SourceTitle "playchess.com"]
[Source "ChessBase"]
[SourceQuality "1"]
[TimeControl "5400+30"]

1. Nf3 {[%emt 0:00:00]} Nf6 {[%emt 0:03:05]} 2. c4 {[%emt 0:00:00]} b6 {[%emt 0:02:22]} 3. g3 {[%emt 0:00:00]} Bb7 {[%emt 0:00:04]} 4. Bg2 {[%emt 0:00:00]} c5 {[%emt 0:00:25]} 5. O-O {[%emt 0:00:11]} g6 {[%emt 0:00:05]} 6. d4 {[%emt 0:03:08]} Bg7 {[%emt 0:03:26]} 7. Nc3 {[%emt 0:01:18]} Ne4 {[%emt 0:02:25]} 8. Nxe4 {[%emt 0:07:57]} Bxe4 {[%emt 0:00:04]} 9. d5 {[%emt 0:00:14]} O-O {[%emt 0:07:57]} 10. Bh3 {[%emt 0:01:54]} Bxf3 {[%emt 0:03:34]} 11. exf3 {[%emt 0:00:41]} d6 {[%emt 0:01:08]} 12. f4 {[%emt 0:01:09]} a6 {[%emt 0:08:21]} 13. a4 {[%emt 0:01:02]} Nd7 {[%emt 0:01:40]} 14. Re1 {[%emt 0:00:27]} Re8 {[%emt 0:02:31]} 15. Ra3 {[%emt 0:05:34]} Rb8 {[%emt 0:04:23]} 16. Bf1 {[%emt 0:01:15]} Nf8 {[%emt 0:00:59]} 17. Rae3 {[%emt 0:02:12]} Bd4 {[%emt 0:03:30]} 18. Re4 {[%emt 0:01:48]} e5 {[%emt 0:01:49]} 19. dxe6 {[%emt 0:00:48]} Rxe6 {[%emt 0:03:55]} 20. b3 {[%emt 0:12:52]} Qf6 {[%emt 0:02:54]} 21. Qd3 {[%emt 0:07:03]} Rbe8 {[%emt 0:05:48]} 22. Bh3 {[%emt 0:00:47]} R6e7 {[%emt 0:00:47]} 23. Bd2 {[%emt 0:02:18]} a5 {[%emt 0:03:58]} 24. Bg4 {[%emt 0:11:44]} Ne6 {[%emt 0:02:43]} 25. h4 {[%emt 0:00:38]} Nc7 {[%emt 0:02:38]} 26. Rxe7 {[%emt 0:04:43]} Rxe7 {[%emt 0:00:02]} 27. Rxe7 {[%emt 0:00:07]} Qxe7 {[%emt 0:00:03]} 28. f5 {[%emt 0:00:02]} Ne8 {[%emt 0:03:19]} 29. fxg6 {[%emt 0:01:14]} hxg6 {[%emt 0:00:10]} 30. Bf3 {[%emt 0:01:19]} Nf6 {[%emt 0:01:09]} 31. Kg2 {[%emt 0:00:06]} Qe6 {[%emt 0:03:09]} 32. Bf4 {[%emt 0:03:40]} Kf8 {[%emt 0:08:18]} 33. Qe2 {[%emt 0:05:06]} Qxe2 {[%emt 0:02:06]} 34. Bxe2 {[%emt 0:00:02]} Ne8 {[%emt 0:00:25]} 35. g4 {[%emt 0:00:55]} Be5 {[%emt 0:00:28]} 36. Bd2 {[%emt 0:03:19]} Ng7 {[%emt 0:01:37]} 37. h5 {[%emt 0:06:08]} Ne6 {[%emt 0:03:11]} 38. Bd1 {[%emt 0:01:13]} Kg7 {[%emt 0:08:57]} 39. Kf3 {[%emt 0:05:26]} gxh5 {[%emt 0:01:09]} 40. gxh5 {[%emt 0:00:31]} f5 {[%emt 0:00:08]} 41. Be3 {[%emt 0:01:01]} Nd4+ {[%emt 0:01:03]} 42. Bxd4 {[%emt 0:00:30]} Bxd4 {[%emt 0:00:44]} 43. Kf4 {[%emt 0:00:29]} Kf6 {[%emt 0:00:15]} 44. Bc2 {[%emt 0:00:51]} Be5+ {[%emt 0:00:11]} 45. Kf3 {[%emt 0:00:12]} Kg5 {[%emt 0:00:24]} 46. h6 {[%emt 0:00:03]} Kxh6 {[%emt 0:00:23]} 47. Bxf5 {[%emt 0:00:04]} Bd4 {[%emt 0:00:08]} 48. Kg3 {[%emt 0:00:45]} Kg5 {[%emt 0:00:52]} 49. Be4 {[%emt 0:00:06]} Be5+ {[%emt 0:00:26]} 50. Kf3 {[%emt 0:00:03]} Bd4 {[%emt 0:00:14]} 51. Bc2 {[%emt 0:01:40]} Kh4 {[%emt 0:00:54]} 52. Bf5 {[%emt 0:04:10]} Kg5 {[%emt 0:00:43]} 53. Bc8 {[%emt 0:00:05]} Kh4 {[%emt 0:00:23]} 54. Bd7 {[%emt 0:00:15]} 1/2-1/2

[Event "Saint Louis Invitational-A 2019"]
[Site "Saint Louis"]
[Date "2019.11.22"]
[Round "2.4"]
[White "Hilby, Craig"]
[Black "Thavandiran, Shiyam"]
[Result "1/2-1/2"]
[ECO "E94"]
[WhiteElo "2414"]
[BlackElo "2409"]
[Annotator "ChessBase"]
[PlyCount "45"]
[EventDate "2019.11.21"]
[EventType "tourn"]
[EventCountry "USA"]
[SourceTitle "playchess.com"]
[Source "ChessBase"]
[SourceQuality "1"]
[TimeControl "5400+30"]

1. d4 {[%emt 0:00:00]} Nf6 {[%emt 0:05:14]} 2. c4 d6 {[%emt 0:02:50]} 3. Nc3 {[%emt 0:01:00]} Nbd7 {[%emt 0:02:58]} 4. Nf3 {[%emt 0:03:10]} g6 {[%emt 0:00:08]} 5. e4 {[%emt 0:04:16]} e5 6. Be2 {[%emt 0:01:36]} Bg7 {[%emt 0:00:47]} 7. O-O {[%emt 0:00:32]} O-O 8. Be3 {[%emt 0:01:05]} Ng4 {[%emt 0:08:13]} 9. Bg5 {[%emt 0:02:13]} f6 {[%emt 0:00:16]} 10. Bd2 {[%emt 0:20:45]} c6 {[%emt 0:34:15]} 11. d5 {[%emt 0:09:49]} Qe7 12. b4 f5 {[%emt 0:15:11]} 13. Bg5 {[%emt 0:09:00]} Ndf6 14. c5 {[%emt 0:08:22]} dxc5 {[%emt 0:07:14]} 15. d6 {[%emt 0:04:13]} Qe8 {[%emt 0:00:07]} 16. bxc5 {[%emt 0:01:12]} h6 {[%emt 0:02:48]} 17. Bc1 {[%emt 0:05:37]} fxe4 {[%emt 0:04:38]} 18. Ne1 {[%emt 0:02:04]} h5 {[%emt 0:00:34]} 19. Bg5 {[%emt 0:02:28]} Be6 {[%emt 0:01:26]} 20. h3 {[%emt 0:02:14]} Nh6 {[%emt 0:00:06]} 21. Bxf6 {[%emt 0:00:37]} Rxf6 {[%emt 0:01:46]} 22. Nxe4 {[%emt 0:00:46]} Rf4 {[%emt 0:00:05]} 23. Qc2 {[%emt 0:07:26]} 1/2-1/2

[Event "Saint Louis Invitational-A 2019"]
[Site "Saint Louis"]
[Date "2019.11.22"]
[Round "2.5"]
[White "Mishra, Abhimanyu"]
[Black "Yoo, Christopher Woojin"]
[Result "1/2-1/2"]
[ECO "B53"]
[WhiteElo "2396"]
[BlackElo "2449"]
[Annotator "ChessBase"]
[PlyCount "64"]
[EventDate "2019.11.21"]
[EventType "tourn"]
[EventCountry "USA"]
[SourceTitle "playchess.com"]
[Source "ChessBase"]
[SourceQuality "1"]
[TimeControl "5400+30"]

1. e4 {[%emt 0:00:00]} c5 {[%emt 0:00:26]} 2. Nf3 {[%emt 0:00:00]} d6 {[%emt 0:00:09]} 3. d4 {[%emt 0:00:00]} cxd4 {[%emt 0:00:05]} 4. Qxd4 {[%emt 0:00:00]} Nc6 {[%emt 0:00:05]} 5. Bb5 {[%emt 0:00:10]} Bd7 {[%emt 0:00:06]} 6. Qd3 {[%emt 0:00:26]} Nf6 {[%emt 0:00:09]} 7. c4 {[%emt 0:01:55]} g6 {[%emt 0:00:12]} 8. Nc3 {[%emt 0:02:35]} Bg7 {[%emt 0:00:13]} 9. O-O {[%emt 0:00:54]} O-O {[%emt 0:01:49]} 10. h3 {[%emt 0:03:34]} Nb4 {[%emt 0:01:22]} 11. Qe2 {[%emt 0:05:27]} a6 {[%emt 0:00:20]} 12. Bxd7 {[%emt 0:02:14]} Nxd7 {[%emt 0:01:54]} 13. Be3 {[%emt 0:09:24]} Bxc3 {[%emt 0:06:54]} 14. bxc3 {[%emt 0:00:11]} Nc6 {[%emt 0:00:04]} 15. Rab1 {[%emt 0:05:51]} Qc7 {[%emt 0:03:06]} 16. Nd2 {[%emt 0:04:52]} Rfc8 {[%emt 0:07:07]} 17. f4 {[%emt 0:07:25]} Na5 {[%emt 0:07:00]} 18. Rb4 {[%emt 0:07:32]} b5 {[%emt 0:07:22]} 19. Rfb1 {[%emt 0:10:39]} Nxc4 {[%emt 0:08:53]} 20. Nxc4 {[%emt 0:01:38]} bxc4 {[%emt 0:00:05]} 21. f5 {[%emt 0:07:33]} Rab8 {[%emt 0:06:42]} 22. Bd4 {[%emt 0:02:22]} Ne5 {[%emt 0:15:31]} 23. Rxb8 {[%emt 0:05:44]} Rxb8 {[%emt 0:00:04]} 24. Rxb8+ {[%emt 0:00:11]} Qxb8 {[%emt 0:00:04]} 25. Bxe5 {[%emt 0:01:50]} dxe5 {[%emt 0:02:36]} 26. fxg6 {[%emt 0:03:10]} hxg6 {[%emt 0:01:54]} 27. Qxc4 {[%emt 0:01:00]} Qb6+ {[%emt 0:00:56]} 28. Kh2 {[%emt 0:01:39]} Qe3 {[%emt 0:00:33]} 29. a4 {[%emt 0:01:20]} a5 {[%emt 0:01:18]} 30. Qc6 {[%emt 0:01:59]} Qf4+ {[%emt 0:01:31]} 31. Kh1 {[%emt 0:00:32]} Qf1+ {[%emt 0:00:39]} 32. Kh2 {[%emt 0:00:09]} Qf4+ {[%emt 0:00:07]} 1/2-1/2

[Event "Saint Louis Invitational-A 2019"]
[Site "Saint Louis"]
[Date "2019.11.23"]
[Round "4.1"]
[White "Matsenko, Sergei"]
[Black "Boros, Denes"]
[Result "1-0"]
[ECO "A04"]
[WhiteElo "2533"]
[BlackElo "2448"]
[Annotator "ChessBase"]
[PlyCount "79"]
[EventDate "2019.11.21"]
[EventType "tourn"]
[EventCountry "USA"]
[SourceTitle "playchess.com"]
[Source "ChessBase"]
[SourceQuality "1"]
[TimeControl "5400+30"]

1. Nf3 {[%emt 0:03:39]} c5 {[%emt 0:00:00]} 2. c4 {[%emt 0:00:04]} Nc6 {[%emt 0:00:01]} 3. e3 {[%emt 0:00:03]} e5 {[%emt 0:00:25]} 4. Nc3 {[%emt 0:00:02]} f5 {[%emt 0:00:07]} 5. d4 {[%emt 0:00:34]} e4 {[%emt 0:00:06]} 6. d5 {[%emt 0:01:07]} exf3 {[%emt 0:01:45]} 7. dxc6 {[%emt 0:00:17]} dxc6 {[%emt 0:00:05]} 8. Qxd8+ {[%emt 0:00:26]} Kxd8 {[%emt 0:00:03]} 9. gxf3 {[%emt 0:00:06]} Be6 {[%emt 0:00:52]} 10. b3 {[%emt 0:00:16]} Be7 {[%emt 0:01:01]} 11. Bb2 {[%emt 0:00:39]} Bf6 {[%emt 0:00:09]} 12. O-O-O+ {[%emt 0:03:45]} Ke7 {[%emt 0:00:40]} 13. Rg1 {[%emt 0:04:31]} Nh6 {[%emt 0:01:23]} 14. Na4 {[%emt 0:01:08]} b6 {[%emt 0:01:47]} 15. Rxg7+ {[%emt 0:06:59]} Bxg7 {[%emt 0:01:21]} 16. Bxg7 {[%emt 0:00:01]} Nf7 {[%emt 0:00:09]} 17. Bxh8 {[%emt 0:00:03]} Rxh8 {[%emt 0:00:05]} 18. f4 {[%emt 0:11:55]} Rg8 {[%emt 0:00:04]} 19. f3 {[%emt 0:06:24]} Rg6 {[%emt 0:01:09]} 20. Nc3 {[%emt 0:02:22]} Nd6 {[%emt 0:00:36]} 21. Kc2 {[%emt 0:02:13]} Rh6 {[%emt 0:00:17]} 22. Rd2 {[%emt 0:00:04]} Bf7 {[%emt 0:00:14]} 23. Rg2 {[%emt 0:01:37]} Bg6 {[%emt 0:03:06]} 24. Kd2 {[%emt 0:04:55]} Rh4 {[%emt 0:00:44]} 25. Ke1 {[%emt 0:02:34]} Ne8 {[%emt 0:02:45]} 26. Kf2 {[%emt 0:00:43]} Nf6 {[%emt 0:00:05]} 27. Kg1 {[%emt 0:00:45]} Ne8 {[%emt 0:00:27]} 28. Rg3 {[%emt 0:00:39]} Nd6 {[%emt 0:00:20]} 29. Kg2 {[%emt 0:08:39]} Ne8 {[%emt 0:03:06]} 30. Rh3 {[%emt 0:03:15]} Rxh3 {[%emt 0:02:49]} 31. Kxh3 {[%emt 0:00:17]} Nc7 {[%emt 0:00:30]} 32. Kg3 {[%emt 0:00:24]} Kf6 {[%emt 0:01:11]} 33. Bd3 {[%emt 0:00:11]} Ne6 {[%emt 0:01:16]} 34. Kf2 {[%emt 0:00:07]} h6 {[%emt 0:05:17]} 35. Ne2 {[%emt 0:00:32]} a6 {[%emt 0:07:38]} 36. e4 {[%emt 0:09:57]} Bh7 {[%emt 0:02:19]} 37. Ke3 {[%emt 0:00:06]} Ng7 {[%emt 0:00:26]} 38. Ng3 {[%emt 0:01:11]} b5 {[%emt 0:00:37]} 39. exf5 {[%emt 0:03:31]} Nxf5+ {[%emt 0:00:02]} 40. Bxf5 {[%emt 0:02:13]} 1-0